[Event "2026 European Womens Championship"]
[Site "Batumi, GE"]
[Date "2026.05.28"]
[Round "4"]
[White "Rapport, Jovana"]
[Black "Deak-Sala, Emilia"]
[Result "1-0"]
[Board "46"]
[TimeControl "5400+30"]
[WhiteFideId "937266"]
[BlackFideId "795615"]
[WhiteElo "2235"]
[BlackElo "2086"]
[WhiteTitle "WGM"]
[BlackTitle "WFM"]
[WhiteClock "0:33:44"]
[BlackClock "0:05:59"]
[Variant "Standard"]

1. e4 {[%clk 1:29:51]}  c5 {[%clk 1:29:53]} 2. Nc3 {[%clk 1:30:15]}  Nc6 {[%clk 1:30:20]} 3. g3 {[%clk 1:30:40]}  g6 {[%clk 1:30:33]}
4. Bg2 {[%clk 1:31:05]}  Bg7 {[%clk 1:30:58]} 5. d3 {[%clk 1:31:23]}  e6 {[%clk 1:31:04]} 6. Be3 {[%clk 1:31:23]}  d6 {[%clk 1:29:06]}
7. Qd2 {[%clk 1:30:19]}  Rb8 {[%clk 1:29:26]} 8. Nf3 {[%clk 1:27:02]}  b5 {[%clk 1:07:07]} 9. O-O {[%clk 1:25:32]}  Nge7 {[%clk 1:06:38]}
10. Bh6 {[%clk 1:23:00]}  O-O {[%clk 1:06:23]} 11. Bxg7 {[%clk 1:19:18]}  Kxg7 {[%clk 1:06:48]} 12. d4 {[%clk 1:19:44]}  b4 {[%clk 0:56:51]}
13. Ne2 {[%clk 1:19:52]}  e5 {[%clk 0:57:12]} 14. c3 {[%clk 1:09:49]}  bxc3 {[%clk 0:55:24]} 15. bxc3 {[%clk 1:10:18]}  cxd4 {[%clk 0:55:39]}
16. cxd4 {[%clk 1:10:46]}  Ba6 {[%clk 0:55:32]} 17. Rfd1 {[%clk 1:11:09]}  Bxe2 {[%clk 0:49:43]} 18. Qxe2 {[%clk 1:11:36]}  Qb6 {[%clk 0:48:59]}
19. d5 {[%clk 1:10:49]}  Na5 {[%clk 0:47:11]} 20. h4 {[%clk 1:05:17]}  Ng8 {[%clk 0:42:42]} 21. Nd2 {[%clk 0:58:14]}  Nf6 {[%clk 0:38:58]}
22. Rab1 {[%clk 0:58:11]}  Qc7 {[%clk 0:39:16]} 23. Rbc1 {[%clk 0:53:09]}  Qb6 {[%clk 0:37:57]} 24. Bh3 {[%clk 0:52:34]}  Rfd8 {[%clk 0:23:54]}
25. Rc2 {[%clk 0:50:01]}  Qb5 {[%clk 0:11:25]} 26. Qe3 {[%clk 0:42:22]}  Nb7 {[%clk 0:07:43]} 27. Rb1 {[%clk 0:38:36]}  Qa5 {[%clk 0:06:55]}
28. Rcb2 {[%clk 0:37:50]}  Qa6 {[%clk 0:07:01]} 29. Bf1 {[%clk 0:36:37]}  Qa4 {[%clk 0:06:04]} 30. Bb5 {[%clk 0:33:18]}  Qa5 {[%clk 0:05:59]}
31. Bc6 {[%clk 0:33:44]} 1-0

[Event "2026 European Womens Championship"]
[Site "Batumi, GE"]
[Date "2026.05.28"]
[Round "4"]
[White "Akat, Elifnaz"]
[Black "Piddubna, Bozhena"]
[Result "0-1"]
[Board "47"]
[TimeControl "5400+30"]
[WhiteFideId "34560556"]
[BlackFideId "34109293"]
[WhiteElo "2061"]
[BlackElo "2235"]
[WhiteTitle "WFM"]
[BlackTitle "WIM"]
[WhiteClock "0:10:03"]
[BlackClock "0:04:27"]
[Variant "Standard"]

1. e4 {[%clk 1:30:59]}  e5 {[%clk 1:30:54]} 2. Nc3 {[%clk 1:31:27]}  Nf6 {[%clk 1:31:11]} 3. Bc4 {[%clk 1:31:56]}  Bc5 {[%clk 1:31:15]}
4. d3 {[%clk 1:32:19]}  c6 {[%clk 1:30:37]} 5. f4 {[%clk 1:31:36]}  exf4 {[%clk 1:30:04]} 6. Nf3 {[%clk 1:23:42]}  d5 {[%clk 1:19:19]}
7. exd5 {[%clk 1:19:02]}  O-O {[%clk 1:19:24]} 8. d4 {[%clk 1:16:54]}  Re8+ {[%clk 1:11:49]} 9. Ne2 {[%clk 1:16:00]}  cxd5 {[%clk 1:11:01]}
10. Bd3 {[%clk 1:01:57]}  Bd6 {[%clk 1:09:53]} 11. O-O {[%clk 1:02:20]}  Qc7 {[%clk 1:06:10]} 12. Nc3 {[%clk 0:57:12]}  a6 {[%clk 1:03:50]}
13. Ne5 {[%clk 0:53:43]}  Nc6 {[%clk 0:59:35]} 14. Rxf4 {[%clk 0:49:27]}  Nxe5 {[%clk 0:53:40]} 15. Rxf6 {[%clk 0:46:17]}  Ng4 {[%clk 0:45:23]}
16. Rf1 {[%clk 0:32:24]}  Bxh2+ {[%clk 0:40:46]} 17. Kh1 {[%clk 0:32:53]}  Bg3 {[%clk 0:34:49]} 18. Qf3 {[%clk 0:29:45]}  Be6 {[%clk 0:28:39]}
19. Nxd5 {[%clk 0:28:33]}  Bxd5 {[%clk 0:18:13]} 20. Qxg4 {[%clk 0:28:24]}  Be6 {[%clk 0:17:53]} 21. Qh5 {[%clk 0:25:05]}  g6 {[%clk 0:16:29]}
22. Qg5 {[%clk 0:21:41]}  Rad8 {[%clk 0:13:27]} 23. Rf3 {[%clk 0:18:55]}  Bd6 {[%clk 0:09:27]} 24. c3 {[%clk 0:11:36]}  Be7 {[%clk 0:08:01]}
25. Qf4 {[%clk 0:11:46]}  Qa5 {[%clk 0:07:02]} 26. Bd2 {[%clk 0:11:30]}  Rd5 {[%clk 0:04:09]} 27. c4 {[%clk 0:09:32]}  Rh5+ {[%clk 0:04:36]}
28. Kg1 {[%clk 0:09:58]}  Qb6 {[%clk 0:05:04]} 29. Bc3 {[%clk 0:09:15]}  Bd6 {[%clk 0:02:07]} 30. Qd2 {[%clk 0:07:52]}  Qc7 {[%clk 0:00:59]}
31. Re1 {[%clk 0:07:40]}  Rf8 {[%clk 0:01:15]} 32. c5 {[%clk 0:04:33]}  Bh2+ {[%clk 0:01:40]} 33. Kf2 {[%clk 0:03:44]}  Bg4 {[%clk 0:02:05]}
34. Qe3 {[%clk 0:03:55]}  Bxf3 {[%clk 0:00:53]} 35. Qxf3 {[%clk 0:04:24]}  Bf4 {[%clk 0:00:36]} 36. b4 {[%clk 0:04:26]}  Rg5 {[%clk 0:00:38]}
37. Re2 {[%clk 0:03:33]}  Rg3 {[%clk 0:00:34]} 38. Qe4 {[%clk 0:04:00]}  Bg5 {[%clk 0:00:36]} 39. Bd2 {[%clk 0:02:53]}  Bxd2 {[%clk 0:00:39]}
40. Rxd2 {[%clk 0:03:22]}  Rg5 {[%clk 0:00:40]} 41. Qe3 {[%clk 0:27:15]}  h6 {[%clk 0:23:40]} 42. Bc2 {[%clk 0:25:51]}  Qh2 {[%clk 0:21:34]}
43. Kf1 {[%clk 0:19:35]}  Rd8 {[%clk 0:18:56]} 44. Be4 {[%clk 0:15:20]}  Re8 {[%clk 0:17:55]} 45. Re2 {[%clk 0:13:31]}  Rg4 {[%clk 0:10:48]}
46. d5 {[%clk 0:10:55]}  Rf4+ {[%clk 0:04:51]} 47. Ke1 {[%clk 0:10:38]}  Qh4+ {[%clk 0:04:01]} 48. g3 {[%clk 0:10:03]}  Rfxe4 {[%clk 0:04:27]} 0-1

[Event "2026 European Womens Championship"]
[Site "Batumi, GE"]
[Date "2026.05.28"]
[Round "4"]
[White "Tsetskhladze, Mariam"]
[Black "Tsiganova, Monika"]
[Result "0-1"]
[Board "48"]
[TimeControl "5400+30"]
[WhiteFideId "13623834"]
[BlackFideId "4500199"]
[WhiteElo "2234"]
[BlackElo "2039"]
[WhiteTitle "WFM"]
[BlackTitle "WIM"]
[WhiteClock "0:06:39"]
[BlackClock "0:05:58"]
[Variant "Standard"]

1. e4 {[%clk 1:25:38]}  c6 {[%clk 1:30:43]} 2. d4 {[%clk 1:25:38]}  d5 {[%clk 1:31:02]} 3. exd5 {[%clk 1:26:04]}  cxd5 {[%clk 1:31:08]}
4. Bd3 {[%clk 1:26:31]}  Nc6 {[%clk 1:31:12]} 5. c3 {[%clk 1:25:08]}  Qc7 {[%clk 1:30:55]} 6. h3 {[%clk 1:25:18]}  g6 {[%clk 1:22:06]}
7. Ne2 {[%clk 1:24:34]}  Nf6 {[%clk 1:07:47]} 8. Qc2 {[%clk 1:20:03]}  a6 {[%clk 0:58:48]} 9. O-O {[%clk 1:09:45]}  Bg7 {[%clk 0:54:21]}
10. f4 {[%clk 1:03:19]}  e6 {[%clk 0:48:14]} 11. a4 {[%clk 0:58:53]}  Bd7 {[%clk 0:47:53]} 12. b4 {[%clk 0:54:25]}  O-O {[%clk 0:47:12]}
13. Be3 {[%clk 0:41:54]}  Rfc8 {[%clk 0:46:49]} 14. Rc1 {[%clk 0:38:37]}  Qd8 {[%clk 0:41:06]} 15. Qd1 {[%clk 0:38:14]}  Rc7 {[%clk 0:40:20]}
16. Nd2 {[%clk 0:37:24]}  Ne7 {[%clk 0:38:23]} 17. g4 {[%clk 0:34:21]}  Nc8 {[%clk 0:35:32]} 18. Ng3 {[%clk 0:19:29]}  Nd6 {[%clk 0:34:05]}
19. Nb3 {[%clk 0:11:55]}  Nc4 {[%clk 0:27:02]} 20. Qe2 {[%clk 0:11:51]}  Ne8 {[%clk 0:26:24]} 21. Nc5 {[%clk 0:11:08]}  Ned6 {[%clk 0:23:19]}
22. Nf1 {[%clk 0:10:33]}  b6 {[%clk 0:19:21]} 23. Nxd7 {[%clk 0:10:34]}  Qxd7 {[%clk 0:19:42]} 24. Nd2 {[%clk 0:10:36]}  Rac8 {[%clk 0:17:12]}
25. Bf2 {[%clk 0:10:20]}  Nxd2 {[%clk 0:12:42]} 26. Qxd2 {[%clk 0:10:45]}  Nc4 {[%clk 0:12:57]} 27. Qe2 {[%clk 0:10:37]}  a5 {[%clk 0:13:09]}
28. b5 {[%clk 0:10:12]}  Nd6 {[%clk 0:12:52]} 29. Be1 {[%clk 0:09:31]}  Bxd4+ {[%clk 0:08:54]} 30. Bf2 {[%clk 0:07:55]}  Bxf2+ {[%clk 0:08:23]}
31. Qxf2 {[%clk 0:07:52]}  Rxc3 {[%clk 0:08:17]} 32. Rd1 {[%clk 0:08:05]}  Qc7 {[%clk 0:08:35]} 33. Kg2 {[%clk 0:07:10]}  Qc5 {[%clk 0:07:57]}
34. Qe2 {[%clk 0:07:34]}  Nc4 {[%clk 0:07:13]} 35. Kf3 {[%clk 0:07:01]}  d4 {[%clk 0:06:43]} 36. h4 {[%clk 0:06:22]}  Qd5+ {[%clk 0:06:17]}
37. Kg3 {[%clk 0:06:39]}  Ne3 {[%clk 0:05:58]} 0-1

[Event "2026 European Womens Championship"]
[Site "Batumi, GE"]
[Date "2026.05.28"]
[Round "4"]
[White "Orian, Noga"]
[Black "Tsirulnik, Maritsa"]
[Result "1-0"]
[Board "49"]
[TimeControl "5400+30"]
[WhiteFideId "2836475"]
[BlackFideId "14118688"]
[WhiteElo "2231"]
[BlackElo "2028"]
[WhiteTitle "WIM"]
[BlackTitle "WFM"]
[WhiteClock "0:22:23"]
[BlackClock "0:03:19"]
[Variant "Standard"]

1. d4 {[%clk 1:30:48]}  Nf6 {[%clk 1:30:53]} 2. c4 {[%clk 1:31:09]}  e6 {[%clk 1:31:20]} 3. g3 {[%clk 1:31:30]}  d5 {[%clk 1:31:39]}
4. Bg2 {[%clk 1:31:51]}  dxc4 {[%clk 1:31:26]} 5. Nf3 {[%clk 1:32:05]}  a6 {[%clk 1:31:22]} 6. O-O {[%clk 1:32:08]}  Nc6 {[%clk 1:30:50]}
7. Qd2 {[%clk 1:32:13]}  Rb8 {[%clk 1:26:59]} 8. Ne5 {[%clk 1:32:24]}  Bd7 {[%clk 1:18:11]} 9. Nc3 {[%clk 1:17:57]}  Na5 {[%clk 1:13:11]}
10. Rd1 {[%clk 1:06:18]}  Bb4 {[%clk 0:59:19]} 11. Qc2 {[%clk 1:01:12]}  Qe7 {[%clk 0:47:58]} 12. Bg5 {[%clk 0:57:03]}  Rd8 {[%clk 0:33:18]}
13. Ne4 {[%clk 0:56:12]}  Bb5 {[%clk 0:26:26]} 14. Ng4 {[%clk 0:55:27]}  Nxg4 {[%clk 0:26:08]} 15. Bxe7 {[%clk 0:55:48]}  Bxe7 {[%clk 0:26:32]}
16. Qc3 {[%clk 0:53:57]}  b6 {[%clk 0:25:52]} 17. d5 {[%clk 0:53:12]}  O-O {[%clk 0:25:25]} 18. dxe6 {[%clk 0:51:55]}  f5 {[%clk 0:23:12]}
19. h3 {[%clk 0:49:46]}  Nf6 {[%clk 0:20:11]} 20. Ng5 {[%clk 0:49:01]}  Rxd1+ {[%clk 0:16:10]} 21. Rxd1 {[%clk 0:49:29]}  Ne8 {[%clk 0:12:38]}
22. Nf7 {[%clk 0:48:59]}  Nd6 {[%clk 0:12:12]} 23. Qc2 {[%clk 0:47:09]}  Nab7 {[%clk 0:10:24]} 24. Rd5 {[%clk 0:42:26]}  Be8 {[%clk 0:09:31]}
25. Ne5 {[%clk 0:39:20]}  Nc5 {[%clk 0:08:28]} 26. Nxc4 {[%clk 0:38:50]}  Rf6 {[%clk 0:07:19]} 27. Nxd6 {[%clk 0:36:51]}  Bxd6 {[%clk 0:07:42]}
28. e7 {[%clk 0:31:50]}  g6 {[%clk 0:06:24]} 29. Qc4 {[%clk 0:29:17]}  Kg7 {[%clk 0:05:56]} 30. b4 {[%clk 0:27:55]}  b5 {[%clk 0:06:21]}
31. Qc3 {[%clk 0:25:56]}  Na4 {[%clk 0:06:20]} 32. Qd4 {[%clk 0:25:55]}  Bxe7 {[%clk 0:05:56]} 33. g4 {[%clk 0:24:37]}  fxg4 {[%clk 0:05:49]}
34. hxg4 {[%clk 0:24:53]}  c6 {[%clk 0:03:01]} 35. g5 {[%clk 0:22:23]}  cxd5 {[%clk 0:03:19]} 1-0

[Event "2026 European Womens Championship"]
[Site "Batumi, GE"]
[Date "2026.05.28"]
[Round "4"]
[White "Bashylina, Luisa"]
[Black "Koghuashvili, Tekla"]
[Result "0-1"]
[Board "50"]
[TimeControl "5400+30"]
[WhiteFideId "12983292"]
[BlackFideId "13621564"]
[WhiteElo "2208"]
[BlackElo "1921"]
[WhiteTitle "WFM"]
[WhiteClock "0:00:45"]
[BlackClock "0:21:11"]
[Variant "Standard"]

1. d4 {[%clk 1:30:59]}  Nf6 {[%clk 1:30:56]} 2. c4 {[%clk 1:31:24]}  d5 {[%clk 1:30:55]} 3. cxd5 {[%clk 1:31:37]}  Nxd5 {[%clk 1:31:19]}
4. e4 {[%clk 1:31:55]}  Nb6 {[%clk 1:31:45]} 5. Nc3 {[%clk 1:30:25]}  g6 {[%clk 1:32:07]} 6. Be3 {[%clk 1:30:24]}  Bg7 {[%clk 1:32:32]}
7. Be2 {[%clk 1:26:52]}  O-O {[%clk 1:32:44]} 8. Nf3 {[%clk 1:26:40]}  Bg4 {[%clk 1:31:43]} 9. O-O {[%clk 1:19:40]}  Nc6 {[%clk 1:17:41]}
10. e5 {[%clk 1:11:56]}  h6 {[%clk 1:12:36]} 11. b3 {[%clk 1:07:42]}  Nb4 {[%clk 1:10:08]} 12. Ne4 {[%clk 0:57:02]}  N6d5 {[%clk 0:58:36]}
13. Bd2 {[%clk 0:48:41]}  Bf5 {[%clk 0:51:27]} 14. Ng3 {[%clk 0:47:39]}  Bd3 {[%clk 0:47:00]} 15. Bxb4 {[%clk 0:38:26]}  Bxe2 {[%clk 0:47:24]}
16. Qxe2 {[%clk 0:38:52]}  Nxb4 {[%clk 0:47:47]} 17. Qb5 {[%clk 0:39:01]}  Nc6 {[%clk 0:47:57]} 18. Rfd1 {[%clk 0:38:57]}  Rb8 {[%clk 0:47:48]}
19. Rac1 {[%clk 0:38:20]}  a6 {[%clk 0:46:38]} 20. Qc4 {[%clk 0:31:25]}  e6 {[%clk 0:44:17]} 21. Ne4 {[%clk 0:29:30]}  Qe7 {[%clk 0:42:05]}
22. Nc5 {[%clk 0:28:43]}  b5 {[%clk 0:41:03]} 23. Qc3 {[%clk 0:26:36]}  Rb6 {[%clk 0:40:57]} 24. a4 {[%clk 0:25:36]}  b4 {[%clk 0:39:51]}
25. Qd3 {[%clk 0:24:09]}  a5 {[%clk 0:38:37]} 26. Rc2 {[%clk 0:20:21]}  Rd8 {[%clk 0:37:38]} 27. Qe4 {[%clk 0:18:46]}  Rd5 {[%clk 0:37:24]}
28. Rdc1 {[%clk 0:17:41]}  Nxd4 {[%clk 0:22:47]} 29. Nxd4 {[%clk 0:16:10]}  Bxe5 {[%clk 0:23:12]} 30. Nf3 {[%clk 0:13:07]}  Bc3 {[%clk 0:22:45]}
31. Nd3 {[%clk 0:11:22]}  Rbd6 {[%clk 0:23:05]} 32. Rxc3 {[%clk 0:08:03]}  bxc3 {[%clk 0:23:28]} 33. Rxc3 {[%clk 0:08:28]}  Qf6 {[%clk 0:22:26]}
34. Rxc7 {[%clk 0:04:04]}  Rxd3 {[%clk 0:22:50]} 35. h3 {[%clk 0:04:21]}  Rxb3 {[%clk 0:22:18]} 36. Ne5 {[%clk 0:01:38]}  Rb4 {[%clk 0:20:38]}
37. Qa8+ {[%clk 0:01:26]}  Rd8 {[%clk 0:20:47]} 38. Rxf7 {[%clk 0:00:45]}  Rb1+ {[%clk 0:21:11]} 0-1

[Event "2026 European Womens Championship"]
[Site "Batumi, GE"]
[Date "2026.05.28"]
[Round "4"]
[White "Nomin-Erdene, Davaademberel"]
[Black "Nadanyan, Kiti"]
[Result "1-0"]
[Board "51"]
[TimeControl "5400+30"]
[WhiteFideId "4900782"]
[BlackFideId "13316710"]
[WhiteElo "2328"]
[BlackElo "1801"]
[WhiteTitle "IM"]
[WhiteClock "0:25:49"]
[BlackClock "0:24:53"]
[Variant "Standard"]

1. Nf3 {[%clk 1:30:56]}  d5 {[%clk 1:30:14]} 2. g3 {[%clk 1:31:17]}  Nf6 {[%clk 1:30:16]} 3. Bg2 {[%clk 1:31:38]}  Bf5 {[%clk 1:30:14]}
4. O-O {[%clk 1:31:21]}  e6 {[%clk 1:29:35]} 5. c4 {[%clk 1:31:15]}  c6 {[%clk 1:29:28]} 6. Qb3 {[%clk 1:30:39]}  Qb6 {[%clk 1:28:37]}
7. d3 {[%clk 1:30:51]}  Nbd7 {[%clk 1:21:41]} 8. cxd5 {[%clk 1:30:53]}  Qxb3 {[%clk 1:17:29]} 9. axb3 {[%clk 1:31:17]}  exd5 {[%clk 1:17:55]}
10. Bd2 {[%clk 1:31:38]}  a6 {[%clk 0:58:51]} 11. b4 {[%clk 1:28:18]}  Nb6 {[%clk 0:49:37]} 12. Nd4 {[%clk 1:23:25]}  Bd7 {[%clk 0:47:54]}
13. Bc3 {[%clk 1:22:55]}  Be7 {[%clk 0:47:00]} 14. Nd2 {[%clk 1:22:27]}  O-O {[%clk 0:46:19]} 15. N2b3 {[%clk 1:22:42]}  Nc8 {[%clk 0:39:27]}
16. Nc5 {[%clk 1:13:01]}  Rb8 {[%clk 0:27:28]} 17. e4 {[%clk 1:12:00]}  Nb6 {[%clk 0:16:03]} 18. Ndb3 {[%clk 1:07:02]}  Bc8 {[%clk 0:13:51]}
19. Rfe1 {[%clk 1:02:06]}  Re8 {[%clk 0:09:57]} 20. Na5 {[%clk 0:50:27]}  Nfd7 {[%clk 0:01:12]} 21. exd5 {[%clk 0:48:00]}  Nxd5 {[%clk 0:01:25]}
22. Nxa6 {[%clk 0:47:44]}  bxa6 {[%clk 0:01:14]} 23. Nxc6 {[%clk 0:48:08]}  Nxc3 {[%clk 0:01:20]} 24. Rxe7 {[%clk 0:42:41]}  Rxe7 {[%clk 0:00:57]}
25. Nxe7+ {[%clk 0:43:06]}  Kf8 {[%clk 0:01:25]} 26. Nxc8 {[%clk 0:43:05]}  Nb5 {[%clk 0:01:14]} 27. Bh3 {[%clk 0:40:55]}  Ne5 {[%clk 0:00:40]}
28. Rxa6 {[%clk 0:37:09]}  Nxd3 {[%clk 0:00:51]} 29. Nb6 {[%clk 0:37:19]}  Ne5 {[%clk 0:00:32]} 30. f4 {[%clk 0:37:13]}  Nc7 {[%clk 0:00:32]}
31. fxe5 {[%clk 0:30:50]}  Nxa6 {[%clk 0:00:53]} 32. Nd7+ {[%clk 0:31:18]}  Ke7 {[%clk 0:01:17]} 33. Nxb8 {[%clk 0:31:45]}  Nxb8 {[%clk 0:01:43]}
34. b5 {[%clk 0:32:09]}  Kd8 {[%clk 0:01:48]} 35. Kf2 {[%clk 0:30:47]}  Kc7 {[%clk 0:02:05]} 36. Ke3 {[%clk 0:29:11]}  Kb6 {[%clk 0:02:29]}
37. Bf1 {[%clk 0:29:14]}  Nd7 {[%clk 0:02:23]} 38. Kd4 {[%clk 0:29:32]}  Nc5 {[%clk 0:00:50]} 39. Bc4 {[%clk 0:26:46]}  f6 {[%clk 0:00:31]}
40. e6 {[%clk 0:26:59]}  Nb7 {[%clk 0:00:32]} 41. e7 {[%clk 0:26:18]}  Nd6 {[%clk 0:00:41]} 42. Kd5 {[%clk 0:24:53]}  Kc7 {[%clk 0:25:49]}
43. Ke6 {[%clk 0:55:16]} 1-0

[Event "2026 European Womens Championship"]
[Site "Batumi, GE"]
[Date "2026.05.28"]
[Round "4"]
[White "Nenova, Andzhelika"]
[Black "Sivanandan, Bodhana"]
[Result "0-1"]
[Board "52"]
[TimeControl "5400+30"]
[WhiteFideId "2939355"]
[BlackFideId "497592"]
[WhiteElo "2072"]
[BlackElo "2374"]
[BlackTitle "FM"]
[WhiteClock "0:00:32"]
[BlackClock "0:02:13"]
[Variant "Standard"]

1. e4 {[%clk 1:30:56]}  c6 {[%clk 1:20:43]} 2. d4 {[%clk 1:31:16]}  d5 {[%clk 1:20:55]} 3. f3 {[%clk 1:31:37]}  dxe4 {[%clk 1:21:14]}
4. fxe4 {[%clk 1:31:59]}  e5 {[%clk 1:21:33]} 5. Nf3 {[%clk 1:32:16]}  Bg4 {[%clk 1:21:28]} 6. c3 {[%clk 1:32:26]}  Nd7 {[%clk 1:21:26]}
7. Bd3 {[%clk 1:32:21]}  Ngf6 {[%clk 1:20:45]} 8. O-O {[%clk 1:30:20]}  Bd6 {[%clk 1:20:33]} 9. Na3 {[%clk 1:30:28]}  O-O {[%clk 1:17:49]}
10. Nc4 {[%clk 1:30:40]}  Qc7 {[%clk 1:14:59]} 11. Nxd6 {[%clk 1:23:05]}  Qxd6 {[%clk 1:15:11]} 12. Be3 {[%clk 1:22:17]}  Rfe8 {[%clk 1:07:46]}
13. Qc2 {[%clk 1:22:06]}  Bxf3 {[%clk 1:05:22]} 14. gxf3 {[%clk 1:19:29]}  Nh5 {[%clk 1:03:51]} 15. Kh1 {[%clk 1:18:12]}  Qf6 {[%clk 0:57:48]}
16. Qd2 {[%clk 1:06:23]}  h6 {[%clk 0:41:32]} 17. f4 {[%clk 1:01:03]}  exf4 {[%clk 0:38:55]} 18. Bxf4 {[%clk 1:01:25]}  Qh4 {[%clk 0:38:22]}
19. Rf3 {[%clk 0:57:14]}  Nf8 {[%clk 0:31:29]} 20. Rg1 {[%clk 0:48:27]}  Ng6 {[%clk 0:30:01]} 21. Be3 {[%clk 0:45:39]}  Rxe4 {[%clk 0:12:59]}
22. Bf2 {[%clk 0:45:09]}  Qe7 {[%clk 0:13:16]} 23. Bxe4 {[%clk 0:45:13]}  Qxe4 {[%clk 0:13:39]} 24. Qd3 {[%clk 0:45:16]}  Qxd3 {[%clk 0:13:39]}
25. Rxd3 {[%clk 0:45:39]}  Ngf4 {[%clk 0:13:23]} 26. Re3 {[%clk 0:45:06]}  Kf8 {[%clk 0:13:00]} 27. Bg3 {[%clk 0:42:42]}  g5 {[%clk 0:10:51]}
28. Rge1 {[%clk 0:41:21]}  Ne6 {[%clk 0:09:28]} 29. Bd6+ {[%clk 0:39:05]}  Kg7 {[%clk 0:09:36]} 30. c4 {[%clk 0:34:41]}  Rd8 {[%clk 0:09:02]}
31. d5 {[%clk 0:26:56]}  cxd5 {[%clk 0:08:32]} 32. cxd5 {[%clk 0:27:16]}  Nef4 {[%clk 0:08:26]} 33. Bxf4 {[%clk 0:27:06]}  Nxf4 {[%clk 0:08:36]}
34. Rd1 {[%clk 0:20:01]}  Kf6 {[%clk 0:07:14]} 35. d6 {[%clk 0:20:07]}  Rd7 {[%clk 0:07:00]} 36. Kg1 {[%clk 0:14:58]}  Ng6 {[%clk 0:06:27]}
37. Re8 {[%clk 0:13:01]}  Nh4 {[%clk 0:05:59]} 38. Rf1+ {[%clk 0:10:49]}  Nf5 {[%clk 0:05:17]} 39. Re7 {[%clk 0:10:54]}  Rxd6 {[%clk 0:05:37]}
40. Rxb7 {[%clk 0:11:13]}  a6 {[%clk 0:04:48]} 41. b4 {[%clk 0:04:41]}  Kg6 {[%clk 0:03:32]} 42. a4 {[%clk 0:04:01]}  Rd4 {[%clk 0:18:35]}
43. Rb1 {[%clk 0:24:08]}  a5 {[%clk 0:10:07]} 44. b5 {[%clk 0:22:01]}  Rd2 {[%clk 0:09:04]} 45. Kh1 {[%clk 0:06:26]}  g4 {[%clk 0:06:41]}
46. Rc7 {[%clk 0:03:18]}  g3 {[%clk 0:01:43]} 47. hxg3 {[%clk 0:03:08]}  Nxg3+ {[%clk 0:01:59]} 48. Kg1 {[%clk 0:03:34]}  h5 {[%clk 0:01:44]}
49. Rc4 {[%clk 0:02:56]}  Kg5 {[%clk 0:01:39]} 50. Rb3 {[%clk 0:01:09]}  h4 {[%clk 0:01:05]} 51. Rxg3+ {[%clk 0:00:34]}  hxg3 {[%clk 0:01:26]}
52. b6 {[%clk 0:00:56]}  f5 {[%clk 0:00:55]} 53. Rc5 {[%clk 0:00:38]}  Kg4 {[%clk 0:01:05]} 54. Kf1 {[%clk 0:00:32]}  Kh3 {[%clk 0:01:09]}
55. Ke1 {[%clk 0:00:31]}  Rb2 {[%clk 0:01:21]} 56. Rxf5 {[%clk 0:00:32]}  g2 {[%clk 0:00:56]} 57. Rg5 {[%clk 0:00:47]}  Rxb6 {[%clk 0:01:06]}
58. Kf2 {[%clk 0:00:31]}  Rb2+ {[%clk 0:00:56]} 59. Kf3 {[%clk 0:00:42]}  Kh2 {[%clk 0:00:53]} 60. Rh5+ {[%clk 0:01:03]}  Kg1 {[%clk 0:01:16]}
61. Rd5 {[%clk 0:00:38]}  Rb3+ {[%clk 0:01:16]} 62. Kg4 {[%clk 0:01:07]}  Rb4+ {[%clk 0:01:17]} 63. Kg3 {[%clk 0:01:10]}  Rb3+ {[%clk 0:01:36]}
64. Kg4 {[%clk 0:01:29]}  Re3 {[%clk 0:01:56]} 65. Kf4 {[%clk 0:00:57]}  Kf2 {[%clk 0:02:02]} 66. Rd1 {[%clk 0:00:32]}  Re8 {[%clk 0:02:13]} 0-1

[Event "2026 European Womens Championship"]
[Site "Batumi, GE"]
[Date "2026.05.28"]
[Round "4"]
[White "Gvetadze, Sofio"]
[Black "Subramanian, Anusha"]
[Result "1-0"]
[Board "53"]
[TimeControl "5400+30"]
[WhiteFideId "13601440"]
[BlackFideId "477710"]
[WhiteElo "2311"]
[BlackElo "2068"]
[WhiteTitle "IM"]
[BlackTitle "WFM"]
[WhiteClock "0:02:17"]
[BlackClock "0:00:47"]
[Variant "Standard"]

1. e4 {[%clk 1:30:57]}  e5 {[%clk 1:30:55]} 2. Nf3 {[%clk 1:31:14]}  Nf6 {[%clk 1:31:20]} 3. d3 {[%clk 1:29:42]}  d6 {[%clk 1:30:47]}
4. Be2 {[%clk 1:29:34]}  Be7 {[%clk 1:30:01]} 5. Nbd2 {[%clk 1:29:32]}  c5 {[%clk 1:27:15]} 6. O-O {[%clk 1:29:07]}  Nc6 {[%clk 1:26:55]}
7. c3 {[%clk 1:29:16]}  h6 {[%clk 1:21:54]} 8. a3 {[%clk 1:28:30]}  O-O {[%clk 1:16:09]} 9. Re1 {[%clk 1:28:13]}  Nh7 {[%clk 1:11:52]}
10. b4 {[%clk 1:26:33]}  Ng5 {[%clk 1:04:17]} 11. Nc4 {[%clk 1:24:28]}  b5 {[%clk 1:02:04]} 12. Ne3 {[%clk 1:23:39]}  Nxf3+ {[%clk 0:59:20]}
13. Bxf3 {[%clk 1:23:07]}  Bg5 {[%clk 0:54:11]} 14. Bb2 {[%clk 1:21:57]}  Bxe3 {[%clk 0:49:35]} 15. fxe3 {[%clk 1:21:07]}  Be6 {[%clk 0:44:05]}
16. bxc5 {[%clk 1:19:17]}  dxc5 {[%clk 0:44:27]} 17. d4 {[%clk 1:19:39]}  Na5 {[%clk 0:40:54]} 18. d5 {[%clk 1:17:59]}  Bd7 {[%clk 0:40:29]}
19. Be2 {[%clk 1:17:55]}  c4 {[%clk 0:38:40]} 20. a4 {[%clk 1:17:06]}  Nb3 {[%clk 0:36:37]} 21. Ra2 {[%clk 1:16:40]}  a6 {[%clk 0:34:30]}
22. Ba3 {[%clk 1:16:37]}  Re8 {[%clk 0:34:51]} 23. Bh5 {[%clk 1:08:12]}  g6 {[%clk 0:30:22]} 24. Rf2 {[%clk 1:06:46]}  Ra7 {[%clk 0:28:06]}
25. Ref1 {[%clk 0:39:02]}  Bc8 {[%clk 0:20:54]} 26. Rf6 {[%clk 0:35:40]}  Kg7 {[%clk 0:15:37]} 27. R1f2 {[%clk 0:14:21]}  Rg8 {[%clk 0:02:47]}
28. Qf1 {[%clk 0:10:23]}  Qe8 {[%clk 0:02:37]} 29. Bd1 {[%clk 0:07:21]}  Rc7 {[%clk 0:00:37]} 30. h3 {[%clk 0:06:40]}  Na5 {[%clk 0:00:45]}
31. axb5 {[%clk 0:06:22]}  axb5 {[%clk 0:01:01]} 32. Bd6 {[%clk 0:06:06]}  Rd7 {[%clk 0:00:50]} 33. Bg4 {[%clk 0:03:40]}  Rxd6 {[%clk 0:00:48]}
34. Rxd6 {[%clk 0:03:56]}  Bxg4 {[%clk 0:01:08]} 35. hxg4 {[%clk 0:04:21]}  Nb7 {[%clk 0:01:01]} 36. Rc6 {[%clk 0:04:06]}  Nd8 {[%clk 0:00:55]}
37. Rc7 {[%clk 0:04:21]}  Rh8 {[%clk 0:00:33]} 38. Qa1 {[%clk 0:04:25]}  h5 {[%clk 0:00:32]} 39. g5 {[%clk 0:04:17]}  h4 {[%clk 0:00:41]}
40. Qa6 {[%clk 0:04:29]}  h3 {[%clk 0:00:33]} 41. Qf6+ {[%clk 0:04:28]}  Kh7 {[%clk 0:00:34]} 42. Rf3 {[%clk 0:02:09]}  h2+ {[%clk 0:00:31]}
43. Kxh2 {[%clk 0:02:08]}  Kg8+ {[%clk 0:00:48]} 44. Kg1 {[%clk 0:02:20]}  b4 {[%clk 0:00:47]} 45. Rc8 {[%clk 0:02:17]} 1-0